fUST/lending_fUST_20260225
["ID","MTS","AMOUNT","RATE_DAILY","PERIOD"]
[406591821,1771963837899,-246.12,0.00042907,120]
[406591822,1771963837909,-258.42,0.00043407,120]
[406591823,1771963837919,-271.33,0.00043907,120]
[406591824,1771963837929,-284.91,0.00044407,120]
[406591825,1771963837938,-299.16,0.00044907,120]
[406591826,1771963837947,-314.12,0.00045407,120]
[406591827,1771963837956,-329.82,0.00045907,120]
[406591828,1771963837965,-346.31,0.00046407,120]
[406591829,1771963837974,-363.63,0.00046907,120]
[406591830,1771963837983,-381.81,0.00047407,120]
[406591831,1771963837992,-400.9,0.00047907,120]
[406591832,1771963838002,-420.95,0.00048407,120]
[406591833,1771963838011,-175.20052986,0.00048634,120]
[406591834,1771963838021,-441.99,0.00048907,120]
[406591835,1771963838030,-172.0,0.00049,90]
[406591836,1771963838040,-1007.34019501,0.00049383,15]
[406591837,1771963838049,-464.09,0.00049407,120]
[406591838,1771963838058,-487.3,0.00049907,120]
[406591839,1771963838068,-727.0,0.00050012,2]
[406591840,1771963838078,-715.0,0.0005004,31]
[406591841,1771963838088,-389.0315603,0.0005019,120]
[406591842,1771963838098,-200.0,0.000503,60]
[406591843,1771963838108,-402.0,0.0005036,31]
[406591844,1771963838118,-511.66,0.00050407,120]
[406591845,1771963838127,-300.0,0.000506,60]
[406591846,1771963838137,-715.0,0.0005072,31]
[406591847,1771963838146,-500.0,0.000509,60]
[406591848,1771963838155,-537.25,0.00050907,120]
[406591849,1771963838164,-1000.0,0.000512,60]
[406591850,1771963838174,-402.0,0.0005132,31]
[406591851,1771963838183,-600.0,0.00051367,120]
[406591852,1771963838193,-564.11,0.00051407,120]
[406591853,1771963838202,-164.0,0.0005164,31]
[406591854,1771963838212,-397.0,0.0005164,31]
[406591855,1771963838221,-402.0,0.0005168,31]
[406591856,1771963838230,-499.82490496,0.0005189,2]
[406591857,1771963838240,-499.82490496,0.00051893,2]
[406591858,1771963838249,-499.82490496,0.00051895,2]
[406591859,1771963838259,-168.0,0.00051897,2]
[406591860,1771963838268,-499.82490496,0.00051898,2]
[406591861,1771963838277,-1388.86610447,0.000519,30]
[406591862,1771963838287,-499.82490496,0.000519,2]
[406591863,1771963838297,-592.32,0.00051907,120]
[406591864,1771963838307,-216.70113393,0.00051969,2]
[406591865,1771963838317,-167.58844677,0.00051969,2]
[406591866,1771963838327,-521.58566665,0.00051969,2]
[406591867,1771963838336,-1291.04,0.0005199,10]
[406591868,1771963838346,-151.0,0.0005199,120]
[406591869,1771963838355,-151.0,0.0005199,120]
[406591870,1771963838365,-150.0,0.00051999,2]
[406591871,1771963838375,-150.0,0.00051999,2]
[406591872,1771963838384,-150.0,0.00051999,2]
[406591873,1771963838394,-200.4215101,0.00051999,2]
[406591874,1771963838403,-238.79272384,0.00051999,2]
[406591875,1771963838413,-219.18999347,0.00051999,2]
[406591876,1771963838423,-5000.0,0.00051999,2]
[406591877,1771963838432,-22058.1057266,0.00052,2]
[406591915,1771963843131,-3707.79999998,0.00052,2]
[406591942,1771964753304,-750.84065312,0.00024953,120]
[406591943,1771964836091,-295.08421926,0.00024953,2]
[406591944,1771964841091,-1109.98357675,0.00024953,2]
[406591945,1771964850083,-2236.99871499,0.00024953,2]
[406591946,1771964926808,208.56895783,1.5e-05,120]
[406591947,1771964957084,-1357.933489,0.00024953,2]
[406591948,1771964957103,-744.3517164,0.00028955,2]
[406591949,1771964957123,-484.0,0.000299,12]
[406591950,1771964957142,-156.0,0.00030822,14]
[406591951,1771964957161,-181.3832558,0.00039059,2]
[406591952,1771964957180,-464.3562,0.00041476,2]
[406591953,1771964957200,-153.72,0.0004241,120]
[406591954,1771964957218,-796.91,0.0004241,120]
[406591955,1771964957237,-155.85,0.0004241,120]
[406591956,1771964957256,-464.3562,0.00042513,2]
[406591957,1771964957275,-161.4,0.0004291,120]
[406591958,1771964957293,-836.76,0.0004291,120]
[406591959,1771964957312,-163.65,0.0004291,120]
[406591960,1771964957331,-169.47,0.0004341,120]
[406591961,1771964957349,-733.4090848,0.0004341,120]
[406591962,1771964965082,-145.1909152,0.0004341,120]
[406591963,1771964965104,-171.83,0.0004341,120]
[406591964,1771964965123,-177.95,0.0004391,120]
[406591965,1771964965142,-922.53,0.0004391,120]
[406591966,1771964965162,-180.42,0.0004391,120]
[406591967,1771964965182,-172.47015524,0.00043949,5]
[406591968,1771964965201,-179.20978301,0.00043949,5]
[406591969,1771964965220,-186.84,0.0004441,120]
[406591970,1771964965241,-968.65,0.0004441,120]
[406591971,1771964965261,-189.44,0.0004441,120]
[406591972,1771964965280,-196.19,0.0004491,120]
[406591973,1771964965298,-1017.09,0.0004491,120]
[406591974,1771964965316,-198.94,0.0004491,120]
[406591975,1771964965335,-689.88062097,0.0004519,5]
[406591976,1771964965355,-150.0,0.00045195,120]
[406591977,1771964965374,-181.3832558,0.00045195,2]
[406591978,1771964965393,-206.0,0.0004541,120]
[406591979,1771964965412,-1067.94,0.0004541,120]
[406591980,1771964965431,-216.3,0.0004591,120]
[406591981,1771964965451,-1121.33,0.0004591,120]
[406591982,1771964965470,-171.246,0.0004591,75]
[406591983,1771964965488,-182.580446,0.00045966,2]
[406591984,1771964965507,-3092.53091411,0.00046,2]
[406592159,1771965038655,-1483.2826859,0.00024953,2]
[406592216,1771965040399,-486.34394966,0.00024953,2]
[406592233,1771965043330,-1483.2826859,0.00024953,2]
[406592234,1771965043343,-318.77384957,0.00024953,2]
[406592241,1771965398888,-20000.0,0.00041894,120]
[406592242,1771965398913,-7500.0,0.00041894,31]
[406592243,1771965435982,-393.94340139,0.0004231,28]
[406592244,1771965436006,-855.91,0.0004241,120]
[406592245,1771965436030,-161.07,0.0004241,120]
[406592246,1771965436053,-161.56,0.0004241,120]
[406592247,1771965436077,-152.04,0.0004241,120]
[406592248,1771965436100,-898.71,0.0004291,120]
[406592249,1771965436123,-169.12,0.0004291,120]
[406592250,1771965436152,-169.64,0.0004291,120]
[406592251,1771965436181,-159.65,0.0004291,120]
[406592252,1771965436205,-943.65,0.0004341,120]
[406592253,1771965436229,-177.57,0.0004341,120]
[406592254,1771965436253,-178.12,0.0004341,120]
[406592255,1771965436275,-167.63,0.0004341,120]
[406592256,1771965436298,-990.83,0.0004391,120]
[406592257,1771965436321,-186.45,0.0004391,120]
[406592258,1771965436346,-187.03,0.0004391,120]
[406592259,1771965436369,-176.01,0.0004391,120]
[406592260,1771965436391,-1040.36,0.0004441,120]
[406592261,1771965436505,-195.78,0.0004441,120]
[406592262,1771965436529,-196.38,0.0004441,120]
[406592263,1771965436553,-184.81,0.0004441,120]
[406592264,1771965436577,-1092.39,0.0004491,120]
[406592265,1771965436601,-205.57,0.0004491,120]
[406592266,1771965436624,-206.2,0.0004491,120]
[406592267,1771965436648,-194.05,0.0004491,120]
[406592268,1771965436671,-1147.01,0.0004541,120]
[406592269,1771965436693,-215.84,0.0004541,120]
[406592270,1771965436718,-216.51,0.0004541,120]
[406592271,1771965436741,-203.75,0.0004541,120]
[406592272,1771965436764,-150.0,0.00045423,120]
[406592273,1771965436787,-713.5,0.00045825,60]
[406592274,1771965436810,-286.0,0.00045825,60]
[406592275,1771965436833,-1204.35,0.0004591,120]
[406592276,1771965436856,-226.64,0.0004591,120]
[406592277,1771965436878,-227.33,0.0004591,120]
[406592278,1771965436901,-213.94,0.0004591,120]
[406592279,1771965436924,-1264.58,0.0004641,120]
[406592280,1771965436947,-237.97,0.0004641,120]
[406592281,1771965436971,-238.7,0.0004641,120]
[406592282,1771965436993,-224.64,0.0004641,120]
[406592283,1771965437018,-1327.81,0.0004691,120]
[406592284,1771965437040,-249.87,0.0004691,120]
[406592285,1771965437063,-250.64,0.0004691,120]
[406592286,1771965437086,-235.87,0.0004691,120]
[406592287,1771965437108,-1394.2,0.0004741,120]
[406592288,1771965437131,-262.36,0.0004741,120]
[406592289,1771965437155,-263.17,0.0004741,120]
[406592290,1771965437178,-247.67,0.0004741,120]
[406592291,1771965437202,-177.0,0.00047423,120]
[406592292,1771965437227,-1463.91,0.0004791,120]
[406592293,1771965437250,-275.48,0.0004791,120]
[406592294,1771965437273,-276.33,0.0004791,120]
[406592295,1771965437298,-260.05,0.0004791,120]
[406592296,1771965437322,-1537.1,0.0004841,120]
[406592297,1771965437351,-289.25,0.0004841,120]
[406592298,1771965437374,-290.14,0.0004841,120]
[406592299,1771965437397,-273.05,0.0004841,120]
[406592300,1771965437419,-151.471067,0.00048867,120]
[406592301,1771965437443,-50000.0,0.00048877,120]
[406592302,1771965437466,-151.0,0.00048877,120]
[406592303,1771965437490,-151.0,0.00048877,120]
[406592304,1771965437514,-183.943542,0.00048877,120]
[406592305,1771965437543,-196.673624,0.00048877,120]
[406592306,1771965437572,-196.673624,0.00048877,120]
[406592307,1771965437599,-196.673624,0.00048877,120]
[406592308,1771965437626,-196.673624,0.00048877,120]
[406592309,1771965437653,-1613.96,0.0004891,120]
[406592310,1771965437679,-303.77,0.0004891,120]
[406592311,1771965437705,-304.64,0.0004891,120]
[406592312,1771965437733,-286.7,0.0004891,120]
[406592313,1771965437760,-1694.66,0.0004941,120]
[406592314,1771965437786,-319.88,0.0004941,120]
[406592315,1771965437813,-301.04,0.0004941,120]
[406592316,1771965437842,-204.0,0.00049423,120]
[406592317,1771965437869,-1779.39,0.0004991,120]
[406592318,1771965437896,-335.88,0.0004991,120]
[406592319,1771965437923,-316.08,0.0004991,120]
[406592320,1771965437949,-200.0,0.000503,60]
[406592321,1771965437976,-1000.0,0.000503,60]
[406592322,1771965438002,-450.0,0.000503,60]
[406592323,1771965438028,-715.0,0.000504,31]
[406592324,1771965438052,-715.0,0.000504,31]
[406592325,1771965438077,-1868.36,0.0005041,120]
[406592326,1771965438103,-352.73,0.0005041,120]
[406592327,1771965438129,-331.9,0.0005041,120]
[406592328,1771965438159,-300.0,0.000506,60]
[406592329,1771965438185,-1058.0,0.000506,60]
[406592330,1771965438214,-402.0,0.0005072,31]
[406592331,1771965438244,-402.0,0.0005072,31]
[406592332,1771965438273,-397.0,0.0005072,31]
[406592333,1771965438298,-500.0,0.000509,60]
[406592334,1771965438323,-1961.78,0.0005091,120]
[406592335,1771965438346,-348.49,0.0005091,120]
[406592336,1771965438373,-172.0,0.00051,120]
[406592337,1771965438401,-151.0,0.00051039,30]
[406592338,1771965438429,-402.0,0.0005104,31]
[406592339,1771965438454,-406.0,0.0005104,31]
[406592340,1771965438482,-402.0,0.0005104,31]
[406592341,1771965438509,-1000.0,0.000512,60]
[406592342,1771965438537,-151.0,0.000512,120]
[406592343,1771965438563,-151.0,0.000512,120]
[406592344,1771965438589,-196.673624,0.000512,120]
[406592345,1771965438616,-196.673624,0.000512,120]
[406592346,1771965438646,-196.673624,0.000512,120]
[406592347,1771965438677,-196.673624,0.000512,120]
[406592348,1771965438822,-715.0,0.000513,31]
[406592349,1771965438851,-2059.86,0.0005141,120]
[406592350,1771965438875,-365.92,0.0005141,120]
[406592351,1771965438901,-151.99231,0.0005141,120]
[406592352,1771965438926,-151.99231,0.0005141,120]
[406592353,1771965438952,-151.99231,0.0005141,120]
[406592354,1771965438979,-151.99231,0.0005141,120]
[406592355,1771965439004,-231.0,0.00051423,120]
[406592356,1771965439028,-1000.0,0.000515,60]
[406592357,1771965439052,-151.0,0.00051506,120]
[406592358,1771965439077,-4374.31,0.00051515,120]
[406592359,1771965439101,-164.0,0.0005168,31]
[406592360,1771965439124,-219.18999347,0.00051725,120]
[406592361,1771965439148,-150.0,0.00051725,120]
[406592362,1771965439176,-238.79272384,0.00051725,120]
[406592363,1771965439201,-150.0,0.00051725,120]
[406592364,1771965439226,-150.0,0.00051725,120]
[406592365,1771965439252,-200.4215101,0.0005178,120]
[406592366,1771965439278,-163.87041546,0.000519,120]
[406592367,1771965439303,-2162.86,0.0005191,120]
[406592368,1771965439326,-384.21,0.0005191,120]
[406592369,1771965439351,-151.0,0.00051989,120]
[406592370,1771965439376,-151.0,0.00051989,120]
[406592371,1771965439400,-151.0,0.00051989,120]
[406592372,1771965439424,-151.0,0.00051989,120]
[406592373,1771965439448,-151.0,0.00051989,120]
[406592374,1771965439474,-151.0,0.00051989,120]
[406592375,1771965439498,-151.0,0.00051989,120]
[406592376,1771965439522,-151.0,0.00051989,120]
[406592377,1771965439546,-166.98018273,0.00051989,120]
[406592378,1771965439570,-151.0,0.0005199,30]
[406592379,1771965439593,-184.393087,0.00051999,120]
[406592380,1771965439617,-151.99231,0.00051999,120]
[406592381,1771965439641,-151.99231,0.00051999,120]
[406592382,1771965439665,-151.99231,0.00051999,120]
[406592383,1771965439689,-151.99231,0.00051999,120]
[406592384,1771965439713,-151.0,0.00051999,120]
[406592385,1771965439737,-151.0,0.00051999,120]
[406592386,1771965439760,-196.673624,0.00051999,120]
[406592387,1771965439784,-196.673624,0.00051999,120]
[406592388,1771965439807,-196.673624,0.00051999,120]
[406592389,1771965439830,-196.673624,0.00051999,120]
[406592390,1771965439854,-1178.78,0.00052,30]
[406592391,1771965439877,-416.74,0.00052,30]
[406592392,1771965439900,-151.99231,0.00052,120]
[406592393,1771965439924,-151.99231,0.00052,120]
[406592394,1771965439949,-151.99231,0.00052,120]
[406592395,1771965439974,-151.99231,0.00052,120]
[406592396,1771965439998,-151.99231,0.00052,120]
[406592397,1771965440023,-151.99231,0.00052,120]
[406592398,1771965440046,-151.99231,0.00052,120]
[406592399,1771965440070,-151.99231,0.00052,120]
[406592400,1771965440094,-151.0,0.00052,30]
[406592401,1771965440118,-151.0,0.00052,30]
[406592402,1771965440141,-151.0,0.00052,120]
[406592403,1771965440170,-151.0,0.00052,120]
[406592404,1771965440195,-151.0,0.00052,120]
[406592405,1771965440218,-151.0,0.00052,120]
[406592406,1771965440243,-196.673624,0.00052,120]
[406592407,1771965440266,-196.673624,0.00052,120]
[406592408,1771965440289,-196.673624,0.00052,120]
[406592409,1771965440312,-196.673624,0.00052,120]
[406592410,1771965440335,-196.673624,0.00052,120]
[406592411,1771965440358,-196.673624,0.00052,120]
[406592412,1771965440380,-196.673624,0.00052,120]
[406592413,1771965440404,-196.673632,0.00052,120]
[406592414,1771965440426,-402.0,0.00052157,31]
[406592415,1771965440450,-2271.0,0.0005241,120]
[406592416,1771965440478,-403.42,0.0005241,120]
[406592417,1771965440502,-455.07465924,0.00052678,30]
[406592418,1771965440525,-2384.55,0.0005291,120]
[406592419,1771965440549,-423.6,0.0005291,120]
[406592420,1771965440574,-456.84206907,0.00053039,30]
[406592421,1771965440610,-600.0,0.00053039,120]
[406592422,1771965440738,-2503.78,0.0005341,120]
[406592423,1771965440762,-444.78,0.0005341,120]
[406592424,1771965440788,-258.0,0.00053423,120]
[406592425,1771965440814,-1412.48926094,0.00053641,30]
[406592426,1771965440840,-2628.97,0.0005391,120]
[406592427,1771965440864,-467.01,0.0005391,120]
[406592428,1771965440888,-151.99231,0.00054,120]
[406592429,1771965440911,-151.99231,0.00054,120]
[406592430,1771965440935,-151.99231,0.00054,120]
[406592431,1771965440958,-151.992308,0.00054,120]
[406592432,1771965440982,-163.92118,0.00054,30]
[406592433,1771965441006,-760.1493186,0.00054116,30]
[406592434,1771965441030,-2760.42,0.0005441,120]
[406592435,1771965441054,-490.36,0.0005441,120]
[406592436,1771965441079,-1084.03739215,0.00054509,30]
[406592437,1771965441102,-513.23130407,0.0005477,30]
[406592438,1771965441125,-500.0,0.00054794,120]
[406592439,1771965441148,-500.0,0.00054794,120]
[406592440,1771965441175,-500.0,0.00054794,120]
[406592441,1771965441200,-367.33415629,0.00054794,120]
[406592442,1771965441223,-339.92488,0.00054794,120]
[406592443,1771965441248,-500.0,0.00054794,120]
[406592444,1771965441270,-20841.75,0.00054794,120]
[406592445,1771965441293,-500.0,0.00054794,120]
[406592446,1771965441315,-500.0,0.00054794,120]
[406592447,1771965441371,729.07,0.00054695,120]
[406592448,1771965541607,5000.0,0.000157,120]
[406592449,1771965563723,5000.0,0.000157,120]
[406592527,1771966031114,-352.7038501,0.00013027,2]
[406592669,1771966045072,-245.98490929,0.00013027,2]
[406594591,1771966147093,-4922.5172261,0.00012897,2]
[406594684,1771966153094,-77.4827739,0.00012897,2]
[406594686,1771966153115,-231.38759636,0.00012952,2]
[406594687,1771966153137,-4401.31124061,0.00013027,2]
[406594689,1771966153161,-300.0,0.00013081,2]
[406594690,1771966153185,-2334.88997338,0.00013082,2]
[406594691,1771966153211,-787.0,0.00013425,2]
[406594693,1771966153232,-300.0,0.00013696,2]
[406594694,1771966153254,-380.47222469,0.00013699,2]
[406594696,1771966153276,-420.0,0.00014344,2]
[406594697,1771966153299,-587.0,0.0001573,2]
[406594698,1771966153320,-3565.43137619,0.00015769,2]
[406594700,1771966153340,-353.33424938,0.00015769,2]
[406594701,1771966153362,-263.84380988,0.00016072,2]
[406594703,1771966153387,-8620.17493731,0.00016073,2]
[406594704,1771966153410,-293.0,0.00017249,2]
[406594705,1771966153431,-500.0,0.00027397,2]
[406594707,1771966153455,-200.0,0.00027397,2]
[406594708,1771966153476,-500.0,0.00027397,2]
[406594709,1771966153498,-500.0,0.00027397,2]
[406594711,1771966153521,-500.0,0.00027397,2]
[406594712,1771966153542,-500.0,0.00027397,2]
[406594714,1771966153562,-744.3517164,0.00029058,2]
[406594718,1771966153691,-150.0,0.00041061,2]
[406594719,1771966153711,-742.7387,0.00041475,2]
[406594721,1771966153730,-291.2862,0.00042087,2]
[406594722,1771966153750,-470.52177282,0.00042399,3]
[406594724,1771966153771,-2088.54447452,0.00042408,120]
[406594999,1771966164116,-5000.0,0.00042087,2]
[406595001,1771966164138,-2103.50552548,0.00042408,120]
[406595002,1771966164159,-744.3517164,0.00042409,7]
[406595004,1771966164178,-151.0,0.00042409,30]
[406595005,1771966164199,-435.04,0.0004241,120]
[406595007,1771966164220,-164.18,0.0004241,120]
[406595009,1771966164241,-159.03,0.0004241,120]
[406595010,1771966164263,-156.56,0.0004241,120]
[406595011,1771966164283,-742.7387,0.00042512,2]
[406595013,1771966164303,-231.00722571,0.00042869,2]
[406595015,1771966164324,-456.79,0.0004291,120]
[406595016,1771966164346,-172.39,0.0004291,120]
[406595018,1771966164367,-166.98,0.0004291,120]
[406595019,1771966164395,-164.39,0.0004291,120]
[406595021,1771966164417,-479.63,0.0004341,120]
[406595022,1771966164437,-181.01,0.0004341,120]
[406595024,1771966164459,-175.33,0.0004341,120]
[406595025,1771966164479,-172.61,0.0004341,120]
[406595027,1771966164499,-742.7387,0.00043549,2]
[406595028,1771966164519,-744.3517164,0.000437,7]
[406595030,1771966164539,-150.0,0.00043909,120]
[406595031,1771966164560,-503.61,0.0004391,120]
[406595033,1771966164581,-190.06,0.0004391,120]
[406595034,1771966164602,-184.09,0.0004391,120]
[406595035,1771966164622,-181.24,0.0004391,120]
[406595569,1771966184546,3258.36682083,0.00025,2]
[406596059,1771966204232,153.89,9.5e-05,2]
[406596071,1771966204695,153.89,9.5e-05,2]
[406596082,1771966205116,153.89,9.6e-05,2]
[406596092,1771966205624,153.89,9.6e-05,2]
[406596106,1771966206140,153.89,9.6e-05,2]
[406596121,1771966206680,153.89,9.6e-05,2]
[406596134,1771966207152,153.89,9.7e-05,2]
[406596148,1771966207661,153.89,9.7e-05,2]
[406596159,1771966208069,153.89,9.7e-05,2]
[406596171,1771966208523,153.89,9.8e-05,2]
[406596181,1771966208996,153.89,9.8e-05,2]
[406596193,1771966209515,153.89,9.8e-05,2]
[406596206,1771966210007,153.89,9.8e-05,2]
[406596220,1771966210529,153.89,9.9e-05,2]
[406596234,1771966211038,153.89,9.9e-05,2]
[406596248,1771966211556,153.89,9.9e-05,2]
[406596263,1771966212078,153.89,9.9e-05,2]
[406596273,1771966212593,153.89,0.0001,2]
[406596287,1771966213107,153.89,0.0001,2]
[406596298,1771966213517,153.89,0.0001,2]
[406596312,1771966214027,153.89,0.000101,2]
[406596324,1771966214489,153.89,0.000101,2]
[406596338,1771966215035,153.89,0.000101,2]
[406596351,1771966215540,153.89,0.000101,2]
[406596362,1771966215947,153.89,0.000102,2]
[406596369,1771966216461,153.89,0.000102,2]
[406596382,1771966216986,153.89,0.000102,2]
[406596393,1771966217403,153.89,0.000103,2]
[406596405,1771966217828,153.89,0.000103,2]
[406596422,1771966218479,153.89,0.000103,2]
[406596437,1771966219061,153.89,0.000103,2]
[406596448,1771966219481,153.89,0.000104,2]
[406596458,1771966219980,153.89,0.000104,2]
[406596470,1771966220431,153.89,0.000104,2]
[406596492,1771966221282,153.89,0.000104,2]
[406596742,1771966232087,-501.51528959,0.00024748,2]
[406596743,1771966232097,-1291.04,0.0002499,10]
[406596744,1771966232106,-1075.87,0.0002499,10]
[406596745,1771966232115,-1200.0,0.00024998,2]
[406596747,1771966232125,-423.18075503,0.00024999,2]
[406596748,1771966232136,-7370.3387691,0.00024999,2]
[406596749,1771966232157,-467.52642622,0.00024998,2]
[406596905,1771966238368,-32.47357378,0.00024998,2]
[406596906,1771966238378,-554.88674738,0.00024998,2]
[406596907,1771966238387,-412.63967884,0.00024998,2]
[406597091,1771966246554,-305.44030097,0.0002499,10]
[406601158,1771966755019,190.874309,0.00011977,2]
[406601161,1771966804622,155.23,9.5e-05,2]
[406601162,1771966805147,155.23,9.6e-05,2]
[406601163,1771966805585,155.23,9.7e-05,2]
[406601164,1771966806112,155.23,9.7e-05,2]
[406601165,1771966806645,155.23,9.8e-05,2]
[406601168,1771966807131,155.23,9.9e-05,2]
[406601170,1771966807748,155.23,0.0001,2]
[406601173,1771966808274,155.23,0.000101,2]
[406601176,1771966808828,155.23,0.000101,2]
[406601179,1771966809359,155.23,0.000102,2]
[406601181,1771966809876,155.23,0.000103,2]
[406601184,1771966810411,155.23,0.000104,2]
[406601186,1771966811071,155.23,0.000104,2]
[406601243,1771967254145,-473.67327033,0.00016428,2]
[406601244,1771967350138,-301.10537945,0.0001584,2]
[406601272,1771967438410,-2524.6367795,0.00015701,2]
[406601273,1771967438422,-2194.42681329,0.00015701,2]
[406601285,1771967443784,-440.08349409,0.00015701,2]
[406601328,1771968172701,188.2334349,0.00012423,2]
[406601334,1771968277215,473.67327033,0.000125,2]
[406601335,1771968285241,5000.0,0.000125,2]
[406601337,1771968306794,218.23898577,0.000125,2]
[406601736,1771968545229,241.0690911,0.00011951,2]
[406601964,1771968632432,-1200.0,0.00012152,2]
[406601966,1771968632442,-5000.0,0.00012153,2]
[406601968,1771968632451,-591.0,0.00012153,2]
[406601970,1771968632461,-1891.76536329,0.00012276,2]
[406601972,1771968632473,-1260.07423446,0.00012276,2]
[406601995,1771968638565,-1848.16040225,0.00012276,2]
[406601996,1771968638576,-300.0,0.00012399,2]
[406601997,1771968638585,-300.0,0.00012399,2]
[406601998,1771968638595,-300.0,0.00012399,2]
[406601999,1771968638606,-300.0,0.00012399,2]
[406602000,1771968638615,-300.0,0.00012399,2]
[406602001,1771968638626,-7706.91466225,0.000124,2]
[406602002,1771968638635,-1680.0,0.00013367,2]
[406602003,1771968638645,-4448.50301922,0.00013396,2]
[406602004,1771968638656,-7438.25101064,0.00013396,2]
[406602005,1771968638667,-2111.00414149,0.00013396,2]
[406602006,1771968638679,-1465.35091657,0.00013396,2]
[406602042,1771968640970,-30600.52058843,0.00013396,2]
[406602611,1771968646592,-3635.53835537,0.00013262,2]
[406603234,1771969217449,5000.0,0.00012001,2]
[406603250,1771969226223,5000.0,0.00012001,2]
[406603254,1771969241016,5000.0,0.00012001,2]
[406603255,1771969248699,1879.49661121,0.00012001,2]
[406603256,1771969264353,5000.0,0.00012001,2]
[406603257,1771969286563,5000.0,0.00012001,2]
[406603258,1771969308607,5000.0,0.00012001,2]
[406603259,1771969330633,5000.0,0.00012001,2]
[406603280,1771969353082,5000.0,0.00012001,2]
[406603281,1771969375284,5000.0,0.00012001,2]
[406603291,1771969397158,5000.0,0.00012001,2]
[406603303,1771969419585,5000.0,0.00012001,2]
[406603304,1771969442021,5000.0,0.00012001,2]
[406603327,1771969464124,5000.0,0.00012001,2]
[406603345,1771969486892,5000.0,0.00012001,2]
[406603346,1771969509804,5000.0,0.00012001,2]
[406603365,1771969531756,5000.0,0.00012001,2]
[406603367,1771969553747,5000.0,0.00012001,2]
[406603378,1771969576444,5000.0,0.00012001,2]
[406603387,1771969599063,5000.0,0.00012001,2]
[406603389,1771969621089,5000.0,0.00012001,2]
[406603391,1771969643347,5000.0,0.00012001,2]
[406603392,1771969665386,5000.0,0.00012001,2]
[406603393,1771969687810,5000.0,0.00012001,2]
[406603394,1771969710039,5000.0,0.00012001,2]
[406603395,1771969732180,5000.0,0.00012001,2]
[406603397,1771969754099,5000.0,0.00012001,2]
[406603398,1771969777092,5000.0,0.00012001,2]
[406603400,1771969799185,5000.0,0.00012001,2]
[406603401,1771969821715,5000.0,0.00012001,2]
[406603427,1771969831647,-481.3178346,0.00012177,2]
[406603429,1771969831656,-176.74861511,0.00012327,2]
[406604517,1771970037725,5000.0,0.00012001,2]
[406604518,1771970195392,10000.0,0.00011326,2]
[406604519,1771970252418,5000.0,0.00012001,2]
[406604520,1771970275025,5000.0,0.00012001,2]
[406604521,1771970297068,5000.0,0.00012001,2]
[406604522,1771970319226,5000.0,0.00012001,2]
[406604523,1771970341778,5000.0,0.00012001,2]
[406604524,1771970363688,5000.0,0.00012001,2]
[406604525,1771970385631,5000.0,0.00012001,2]